bitfinex-derivatives/quotes_SOLF0:USTF0_20240911
["timestamp","ask_amount","ask_price","bid_price","bid_amount"]
[1726020924811,117.99808012,134.23,134.19,10.32]
[1726020930418,2.6247,134.24,134.19,10.32]
[1726020930720,224.0,134.33,134.23,10.32]
[1726020930922,2.6423,134.31,134.27,10.32]
[1726020931426,1.2838,134.31,134.27,10.32]
[1726020931720,224.0,134.41,134.25,3.71971744]
[1726020931721,11.6785,134.37,134.3,10.32]
[1726020931926,13.053,134.37,134.3,10.32]
[1726020932228,2.733,134.37,134.29,3.723]
[1726020932427,2.733,134.37,134.28,16.1]
[1726020932930,3.78307301,134.4,134.34,16.1]
[1726020933129,1.3745,134.41,134.34,16.1]
[1726020933428,3.71412724,134.4,134.34,16.1]
[1726020933923,3.81133199,134.43,134.35,1.4056]
[1726020934118,2.7546,134.45,134.36,16.1]
[1726020934319,22.65625289,134.45,134.35,1.4056]
[1726020938514,16.1,134.43,134.35,1.4056]
[1726020938719,16.1,134.43,134.31,16.1]
[1726020938924,16.1,134.43,134.32,1.4109]
[1726020939516,3.7213,134.36,134.32,1.4109]
[1726020941221,3.7214,134.35,134.32,1.4109]
[1726020943118,16.1,134.38,134.29,16.1]
[1726020943320,2.6591,134.37,134.29,16.1]
[1726020943518,3.7225,134.32,134.29,16.1]
[1726020943721,2.6591,134.37,134.27,21.20188949]
[1726020944128,3.7225,134.31,134.27,21.20188949]
[1726020944426,18.7591,134.37,134.27,17.406]
[1726020944632,18.7591,134.37,134.27,1.306]
[1726020944931,18.7591,134.37,134.27,17.406]
[1726020945228,2.6591,134.37,134.29,16.1]
[1726020945932,2.6591,134.37,134.31,16.1]
[1726020947019,3.7218,134.34,134.31,16.1]
[1726020947327,2.6591,134.37,134.31,16.1]
[1726020947524,1.3437,134.37,134.31,16.1]
[1726020948029,3.7212,134.36,134.31,16.1]
[1726020948228,1.3437,134.37,134.31,16.1]
[1726020948631,3.7213,134.36,134.31,16.1]
[1726020948826,1.3728,134.4,134.33,16.1]
[1726020950032,1.306,134.41,134.35,16.1]
[1726020950233,1.413,134.44,134.37,16.1]
[1726020950832,1.413,134.44,134.35,16.1]
[1726020951033,17.513,134.44,134.35,16.1]
[1726020954726,17.513,134.44,134.34,1.354]
[1726020962453,16.1,134.42,134.34,1.354]
[1726020962739,1.413,134.44,134.27,18.7678]
[1726020962740,16.1,134.37,134.27,18.7678]
[1726020962944,6.25837454,134.36,134.28,1.3888]
[1726020963142,3.7224,134.32,134.28,1.3888]
[1726020963337,6.25837454,134.36,134.28,1.3888]
[1726020964134,10.3,134.34,134.28,11.6888]
[1726020965030,6.25837454,134.36,134.29,10.3]
[1726020965240,6.25837454,134.36,134.3,10.3]
[1726020965538,3.7221,134.33,134.3,10.3]
[1726020965741,6.25837454,134.36,134.3,10.3]
[1726020966135,3.722,134.33,134.29,16.1]
[1726020967242,2.6235,134.36,134.29,16.1]
[1726020968446,3.7224,134.32,134.29,16.1]
[1726020969141,3.7218,134.34,134.29,16.1]
[1726020969344,2.6235,134.36,134.29,16.1]
[1726020969750,3.7227,134.31,134.29,16.1]
[1726020970139,2.6235,134.36,134.29,16.1]
[1726020970442,3.7224,134.32,134.29,16.1]
[1726020970835,2.6235,134.36,134.29,16.1]
[1726020971646,7.4391,134.42,134.29,16.1]
[1726020971947,1.3417,134.39,134.29,16.1]
[1726020972143,17.4417,134.39,134.29,16.1]
[1726020972749,3.71415803,134.38,134.29,16.1]
[1726020973248,1.3417,134.39,134.31,16.1]
[1726020975150,17.4417,134.39,134.27,2.7379]
[1726020975342,17.4417,134.39,134.27,1.3573]
[1726020975343,16.1,134.37,134.27,1.3573]
[1726020975548,1.2993,134.36,134.27,1.3573]
[1726020976144,16.1,134.35,134.27,1.3573]
[1726020976447,16.1,134.31,134.21,1.3576]
[1726020976648,1.3185,134.3,134.21,6.41596629]
[1726020976955,1.3185,134.3,134.21,2.6547]
[1726020976956,2.6178,134.3,134.21,2.6547]
[1726020977244,6.4159378,134.3,134.21,2.6547]
[1726020978747,2.6178,134.3,134.22,16.1]
[1726020980857,16.1,134.35,134.24,16.1]
[1726020981048,18.7045,134.35,134.24,16.1]
[1726020984454,18.7045,134.35,134.26,3.7237]
[1726020984757,18.7045,134.35,134.27,1.329]
[1726020984956,18.7045,134.35,134.27,5.0525]
[1726020985553,2.6045,134.35,134.28,3.7231]
[1726020985854,2.6045,134.35,134.27,1.329]
[1726020986243,2.6045,134.35,134.27,5.0526]
[1726020987653,2.6045,134.35,134.27,6.4552]
[1726020988357,2.6045,134.35,134.27,2.7316]
[1726020988556,18.7045,134.35,134.27,1.329]
[1726020994465,2.6045,134.35,134.27,1.329]
[1726020994656,18.7045,134.35,134.27,1.329]
[1726020995058,16.1,134.3,134.22,1.4026]
[1726020995263,19.73674508,134.3,134.23,1.3016]
[1726020996259,10.3,134.28,134.23,1.3016]
[1726020996756,10.3,134.29,134.23,11.6016]
[1726020996957,10.3,134.29,134.23,15.3262]
[1726020997956,10.3,134.29,134.23,11.6016]
[1726020998152,19.8187627,134.3,134.23,1.3016]
[1726020998465,16.09,134.3,134.23,1.3016]
[1726020998763,19.75850458,134.3,134.23,1.3016]
[1726020998962,16.09,134.28,134.23,1.3016]
[1726021002455,16.09,134.28,134.2,3.7255]
[1726021002659,16.09,134.28,134.18,16.09]
[1726021002660,16.09,134.28,134.19,1.3001]
[1726021002860,16.09,134.28,134.19,5.0258]
[1726021003261,16.09,134.28,134.19,1.3001]
[1726021003462,16.09,134.26,134.19,1.3001]
[1726021003663,16.09,134.24,134.19,1.3001]
[1726021004367,16.09,134.26,134.19,1.3001]
[1726021012273,16.09,134.24,134.15,1.4107]
[1726021012573,3.7257,134.2,134.15,2.7923]
[1726021013170,3.7258,134.19,134.15,2.7923]
[1726021014261,3.7258,134.19,134.16,16.09]
[1726021014870,16.09,134.26,134.16,16.09]
[1726021015380,16.09,134.24,134.16,16.09]
[1726021015874,16.09,134.24,134.15,2.7923]
[1726021016073,16.09,134.22,134.15,1.3816]
[1726021016875,3.7265,134.17,134.15,1.3816]
[1726021018285,3.7267,134.16,134.15,1.3816]
[1726021018871,10.31,134.17,134.04,1.3822]
[1726021019076,10.31,134.17,134.05,2.708]
[1726021019378,10.31,134.17,134.1,10.31]
[1726021020377,10.31,134.18,134.11,10.31]
[1726021020978,3.7272,134.15,134.11,10.31]
[1726021021178,10.31,134.18,134.11,10.31]
[1726021021379,3.7275,134.13,134.11,10.31]
[1726021021574,10.31,134.16,134.1,10.31]
[1726021023077,10.31,134.17,134.11,10.31]
[1726021023277,10.31,134.17,134.05,2.708]
[1726021023580,10.31,134.17,134.1,10.31]
[1726021024784,10.31,134.16,134.1,10.31]
[1726021025885,10.31,134.17,134.1,10.31]
[1726021026783,10.31,134.17,134.11,10.31]
[1726021027486,5.09195712,134.23,134.13,10.31]
[1726021027888,10.31,134.2,134.13,10.31]
[1726021028779,5.09195712,134.23,134.12,1.3228]
[1726021028780,10.31,134.18,134.12,1.3228]
[1726021029385,1.3466,134.19,134.14,10.31]
[1726021029992,10.31,134.21,134.15,3.7269]
[1726021030488,11.6773,134.23,134.17,14.0362]
[1726021031191,11.6773,134.23,134.17,10.31]
[1726021031587,1.3673,134.23,134.17,14.0363]
[1726021032489,1.3673,134.23,134.18,14.0361]
[1726021032993,1.3673,134.23,134.18,10.31]
[1726021034595,1.3673,134.23,134.18,14.0361]
[1726021034893,1.3427,134.24,134.18,10.31]
[1726021035090,1.3427,134.24,134.2,14.0355]
[1726021035292,10.31,134.26,134.2,10.31]
[1726021035486,1.3819,134.28,134.14,1.3587]
[1726021035487,12.9676,134.28,134.22,10.31]
[1726021036790,10.31,134.26,134.2,11.6737]
[1726021036991,10.31,134.25,134.2,1.3637]
[1726021037191,2.6576,134.28,134.17,10.31]
[1726021037192,10.31,134.24,134.17,10.31]
[1726021038097,16.11,134.24,134.15,1.3637]
[1726021038402,5.07864239,134.23,134.15,1.3637]
[1726021038598,16.11,134.22,134.15,1.3637]
[1726021038795,21.08204281,134.22,134.12,16.11]
[1726021039100,16.11,134.2,134.11,3.7279]
[1726021040996,16.11,134.2,134.1,16.11]
[1726021041291,16.11,134.18,134.08,16.11]
[1726021041895,16.11,134.18,134.1,3.7281]
[1726021042292,16.11,134.18,134.12,3.7278]
[1726021042598,16.11,134.2,134.12,3.7278]
[1726021043402,16.11,134.2,134.11,3.7279]
[1726021044199,16.11,134.2,134.12,3.7278]
[1726021044402,16.11,134.2,134.1,16.11]
[1726021044601,16.11,134.18,134.08,16.11]
[1726021044902,16.11,134.18,134.11,3.7279]
[1726021045098,16.11,134.18,134.08,16.11]
[1726021045810,16.11,134.18,134.1,3.7283]
[1726021046302,1.3658,134.17,134.08,19.8388]
[1726021046503,1.3658,134.17,134.08,16.11]
[1726021046803,1.3658,134.17,134.1,16.11]
[1726021047006,1.3658,134.17,134.11,3.7279]
[1726021047601,1.2854,134.22,134.13,16.11]
[1726021047905,1.2854,134.22,134.15,16.11]
[1726021048300,1.2854,134.22,134.16,3.7265]
[1726021048500,1.2854,134.22,134.15,16.11]
[1726021048804,1.2854,134.22,134.14,1.3455]
[1726021049797,17.3954,134.22,134.14,1.3455]
[1726021050705,17.3954,134.22,134.14,5.0726]
[1726021051300,17.3954,134.22,134.15,3.7268]
[1726021052010,17.3954,134.22,134.14,5.0726]
[1726021052404,17.3954,134.22,134.14,1.3455]
[1726021054615,16.11,134.2,134.08,16.11]
[1726021054806,1.3865,134.19,134.09,1.3071]
[1726021055107,1.3865,134.19,134.1,16.11]
[1726021055613,1.3865,134.19,134.12,3.7277]
[1726021056814,1.3865,134.19,134.13,3.7274]
[1726021057209,1.3865,134.19,134.14,3.7272]
[1726021060218,1.3865,134.19,134.13,3.69873228]
[1726021060219,1.3865,134.19,134.13,3.7274]
[1726021060421,1.3865,134.19,134.12,16.11]
[1726021061216,1.3865,134.19,134.13,3.7273]
[1726021062715,1.3865,134.19,134.12,16.11]
[1726021063620,1.3865,134.19,134.12,19.8375]
[1726021065913,17.3954,134.22,134.12,19.8375]
[1726021066119,17.3954,134.22,134.12,16.11]
[1726021066316,1.384,134.21,134.12,16.11]
[1726021066515,1.384,134.21,134.12,19.77070096]
[1726021066819,1.384,134.21,134.13,3.7273]
[1726021068421,16.11,134.2,134.1,16.11]
[1726021068616,16.11,134.2,134.09,1.3071]
[1726021069819,16.11,134.18,134.09,1.3071]
[1726021070417,1.4056,134.17,134.09,1.3071]
[1726021071832,17.4221,134.16,134.09,1.3071]
[1726021072322,21.21078093,134.16,134.09,1.3071]
[1726021074627,21.21078093,134.16,134.06,16.11]
[1726021074628,16.11,134.14,134.03,16.11]
[1726021074831,19.8553379,134.14,134.04,3.69200358]
[1726021075328,16.11,134.14,134.03,16.11]
[1726021075522,16.11,134.12,134.03,16.11]
[1726021075718,2.642,134.11,134.03,19.80386841]
[1726021076126,2.642,134.11,134.03,16.11]
[1726021076426,16.11,134.1,134.01,17.4712]
[1726021076821,16.11,134.1,134.01,21.18156335]
[1726021077221,2.642,134.11,134.01,21.18156335]
[1726021077419,2.642,134.11,134.03,3.73]
[1726021078330,2.642,134.11,134.02,3.7305]
[1726021079733,2.642,134.11,134.03,3.7302]
[1726021081333,2.642,134.11,134.04,3.73]
[1726021081929,2.642,134.11,134.01,21.12672488]
[1726021081930,2.642,134.11,134.03,3.7301]
[1726021082230,2.642,134.11,134.01,21.12672488]
[1726021082529,2.642,134.11,134.04,3.7299]
[1726021083233,2.642,134.11,134.01,21.12672488]
[1726021083234,2.642,134.11,134.03,3.7302]
[1726021083530,16.11,134.07,134.01,1.3612]
[1726021085337,16.11,134.07,133.98,3.7316]
[1726021085535,2.5957,134.06,133.98,5.1411]
[1726021086337,2.5957,134.06,133.99,3.7313]
[1726021087431,2.5957,134.06,134.0,3.7311]
[1726021087638,2.5957,134.06,133.99,16.11]
[1726021088738,2.5957,134.06,134.0,3.731]
[1726021088935,2.5957,134.06,133.99,16.11]
[1726021089436,2.5957,134.06,134.01,3.7308]
[1726021089940,1.2936,134.06,134.01,3.7308]
[1726021090240,17.4422,134.1,134.02,3.7305]
[1726021090440,17.4422,134.1,134.01,16.11]
[1726021090441,18.741,134.1,134.01,16.11]
[1726021090629,18.741,134.1,134.03,3.7302]
[1726021090942,22.53662588,134.1,134.01,16.11]
[1726021091239,22.53662588,134.1,134.03,3.73]
[1726021091941,3.70978577,134.12,134.03,16.11]
[1726021092143,3.70978577,134.12,134.01,16.11]
[1726021092144,16.11,134.14,134.05,16.11]
[1726021092440,3.7955088,134.15,134.08,3.7287]
[1726021093137,16.11,134.16,134.08,3.7287]
[1726021093336,16.11,134.16,134.07,3.7291]
[1726021093536,3.75186511,134.15,134.06,3.78954043]
[1726021093729,16.11,134.14,134.05,16.11]
[1726021093928,16.11,134.14,134.05,19.8395]
[1726021094328,3.717547,134.13,134.05,16.11]
[1726021094528,3.717547,134.13,134.04,6.37329259]
[1726021095140,3.717547,134.13,134.04,10.10309259]
[1726021095840,3.717547,134.13,134.05,3.7297]
[1726021096344,16.11,134.14,134.05,16.11]
[1726021096544,19.92192181,134.14,134.05,16.11]
[1726021097332,16.11,134.16,134.07,16.11]
[1726021097731,2.635,134.18,134.09,3.7285]
[1726021097933,2.635,134.18,134.1,1.31]
[1726021098146,3.69591166,134.17,134.1,1.31]
[1726021098332,16.11,134.16,134.1,1.31]
[1726021101443,16.11,134.14,134.05,16.11]
[1726021101648,16.11,134.14,134.06,1.3684]
[1726021102741,3.69591166,134.17,134.06,1.3684]
[1726021102742,16.11,134.13,134.06,1.3684]
[1726021103254,2.736,134.12,134.06,1.3684]
[1726021104742,16.11,134.11,134.02,1.3859]
[1726021104944,2.736,134.12,134.02,1.3859]
[1726021104945,16.11,134.08,134.02,1.3144]
[1726021106952,16.11,134.1,134.02,1.3144]
[1726021107754,18.846,134.12,134.02,1.3144]
[1726021108157,16.11,134.1,134.02,1.3144]
[1726021108355,19.75525035,134.1,134.02,1.3144]
[1726021109057,19.75525035,134.1,134.02,5.0449]
[1726021109446,16.11,134.1,134.02,5.0449]
[1726021109748,16.11,134.1,134.03,3.7302]
[1726021109944,19.77130087,134.1,134.02,1.3144]
[1726021110146,19.77130087,134.1,134.02,5.0448]
[1726021110350,16.11,134.1,134.02,1.3144]
[1726021110750,16.11,134.1,134.03,3.7301]
[1726021111054,18.846,134.12,134.02,1.3144]
[1726021111759,18.846,134.12,134.03,16.11]
[1726021111952,18.846,134.12,134.06,3.7293]
[1726021112252,2.736,134.12,134.06,3.7293]
[1726021112752,3.69591166,134.17,134.05,16.11]
[1726021112753,3.69591166,134.17,134.07,1.3545]
[1726021112950,16.11,134.17,134.07,17.4645]
[1726021113151,16.11,134.17,134.08,3.7287]
[1726021113152,3.68984958,134.16,134.08,3.7287]
[1726021113941,3.68984958,134.16,134.1,3.7283]
[1726021114143,16.11,134.17,134.07,17.4645]
[1726021114350,19.86587297,134.17,134.07,17.4645]
[1726021114747,19.86587297,134.17,134.09,16.11]
[1726021114951,18.8359,134.19,134.09,16.11]
[1726021115252,18.8359,134.19,134.1,3.7282]
[1726021116947,18.8359,134.19,134.09,19.8385]
[1726021117251,16.11,134.17,134.09,19.8385]
[1726021117552,3.73163272,134.16,134.08,5.0848]
[1726021117950,18.8359,134.19,134.08,17.4661]
[1726021118961,18.8359,134.19,134.11,3.7278]
[1726021125268,18.8359,134.19,134.13,3.7274]
[1726021125463,18.8359,134.19,134.1,16.11]
[1726021125464,2.7259,134.19,134.1,16.11]
[1726021126065,2.7259,134.19,134.08,2.7651]
[1726021126066,18.8359,134.19,134.08,18.8751]
[1726021126565,18.8359,134.19,134.12,3.7278]
[1726021127173,18.8359,134.19,134.1,16.11]
[1726021130272,16.11,134.17,134.08,18.8751]
[1726021130477,19.80211841,134.17,134.08,18.8751]
[1726021130673,3.7282,134.11,134.08,18.8751]
[1726021131271,3.7283,134.1,134.08,18.8751]
[1726021132877,3.7286,134.09,134.08,1.409]
[1726021133377,19.80211841,134.17,134.07,1.3545]
[1726021133578,3.7289,134.08,134.07,1.3545]
[1726021134379,19.80211841,134.17,134.07,1.3545]
[1726021135880,16.11,134.15,134.07,1.3545]
[1726021136477,17.525,134.14,134.07,1.3545]
[1726021136681,17.525,134.14,134.01,1.359]
[1726021136682,16.11,134.12,134.01,17.469]
[1726021136984,16.11,134.12,134.02,1.3994]
[1726021137385,16.11,134.1,134.02,1.3994]
[1726021137585,3.7303,134.03,134.02,1.3994]
[1726021137977,16.11,134.1,134.02,1.3994]
[1726021138482,3.7302,134.04,134.02,1.3994]
[1726021138677,16.11,134.1,134.02,1.3994]
[1726021139071,3.7302,134.04,134.02,1.3994]
[1726021140185,3.7299,134.05,134.02,1.3994]
[1726021142786,3.73,134.04,134.02,1.3994]
[1726021142985,5.04933865,134.09,134.02,1.3994]
[1726021143284,3.7303,134.03,134.02,1.3994]
[1726021143985,1.3453,134.08,134.02,1.3994]
[1726021145191,3.7299,134.05,134.02,1.3994]
[1726021145382,1.3453,134.08,134.02,1.3994]
[1726021145583,1.3318,134.09,134.03,16.11]
[1726021146483,3.7297,134.05,134.03,16.11]
[1726021146984,3.7297,134.05,134.02,1.3994]
[1726021147190,3.7303,134.03,134.02,1.3994]
[1726021147784,3.7299,134.05,134.02,1.3994]
[1726021148184,2.7224,134.09,134.02,1.3994]
[1726021148387,3.7301,134.04,134.02,1.3994]
[1726021149888,3.7298,134.05,134.02,1.3994]
[1726021152098,3.7296,134.06,134.02,1.3994]
[1726021154487,1.3318,134.09,134.03,16.11]
[1726021155293,3.7293,134.07,134.03,16.11]
[1726021157993,1.3318,134.09,134.03,16.11]
[1726021159094,1.3318,134.09,134.04,3.75960605]
[1726021161311,1.377,134.14,134.05,16.11]
[1726021161502,1.377,134.14,134.07,16.11]
[1726021161503,2.7722,134.14,134.07,16.11]
[1726021163310,2.7722,134.14,134.05,3.70066403]
[1726021164114,18.8822,134.14,134.04,16.11]
[1726021164309,18.8822,134.14,134.04,19.93188409]
[1726021167216,2.7722,134.14,134.04,19.93188409]
[1726021169322,2.7722,134.14,134.04,19.88731627]
[1726021170216,16.11,134.13,134.04,3.82188409]
[1726021170412,16.11,134.13,134.03,17.4996]
[1726021170615,16.11,134.09,134.02,1.3994]
[1726021170820,3.7303,134.03,133.98,17.5058]
[1726021171017,2.6624,134.08,133.99,1.3614]
[1726021171708,3.7304,134.03,133.99,1.3614]
[1726021171907,2.6624,134.08,133.99,1.3614]
[1726021173919,3.7302,134.04,133.99,1.3614]
[1726021175624,3.7298,134.05,133.99,1.3614]
[1726021175923,3.7298,134.05,134.0,16.11]
[1726021176611,3.7298,134.05,133.99,1.3614]
[1726021176612,224.0,134.13,134.02,16.11]
[1726021176816,2.6663,134.12,134.02,16.11]
[1726021177019,2.6663,134.12,134.04,16.11]
[1726021177224,2.6663,134.12,134.05,1.3381]
[1726021177814,1.2896,134.12,134.06,16.11]
[1726021178226,1.3767,134.17,134.06,16.11]
[1726021178227,17.4867,134.17,134.06,16.11]
[1726021178526,5.03767776,134.16,134.06,16.11]
[1726021180031,1.3082,134.16,134.06,16.11]
[1726021180528,1.3082,134.16,134.08,16.11]
[1726021183631,1.3082,134.16,134.1,16.11]
[1726021183828,117.90650761,134.18,134.11,5.03899959]
[1726021185925,117.90650761,134.18,134.12,16.11]
[1726021186932,1.3637,134.2,134.14,16.11]
[1726021188131,1.3637,134.2,134.12,16.11]
[1726021191737,3.7263,134.18,134.14,16.11]
[1726021191937,2.7026,134.23,134.14,16.11]
[1726021194136,18.8126,134.23,134.14,16.11]
[1726021194945,3.7266,134.17,134.14,16.11]
[1726021195147,18.8126,134.23,134.14,16.11]
[1726021196647,3.7266,134.17,134.14,16.11]
[1726021197442,18.8126,134.23,134.14,16.11]
[1726021197748,18.8126,134.23,134.12,18.836]
[1726021198947,16.11,134.21,134.12,18.836]
[1726021202345,16.11,134.21,134.12,17.492]
[1726021202544,16.11,134.21,134.11,1.3193]
[1726021203344,16.11,134.21,134.11,5.05056504]
[1726021203546,16.11,134.21,134.12,16.11]
[1726021204149,16.11,134.21,134.12,19.89382857]
[1726021204855,2.7026,134.23,134.14,16.11]
[1726021205254,16.11,134.21,134.13,2.689]
[1726021205552,16.11,134.19,134.11,1.3193]
[1726021205849,1.314,134.18,134.11,1.3193]
[1726021206049,2.6377,134.18,134.11,1.3193]
[1726021206846,16.11,134.17,134.11,1.3193]
[1726021207846,2.6377,134.18,134.11,5.08337426]
[1726021208041,1.314,134.18,134.12,16.11]
[1726021208244,1.4091,134.23,134.14,16.11]
[1726021208951,1.4091,134.23,134.14,19.9186185]
[1726021209150,1.4091,134.23,134.16,16.11]
[1726021209453,5.11520601,134.23,134.17,1.377]
[1726021209750,3.7261,134.18,134.17,1.377]
[1726021210144,1.4091,134.23,134.12,18.7735]
[1726021210346,1.4091,134.23,134.13,1.377]
[1726021210650,16.11,134.22,134.13,1.377]
[1726021210953,1.36,134.21,134.13,1.377]
[1726021211351,1.36,134.21,134.14,16.11]
[1726021211945,1.36,134.21,134.13,1.377]
[1726021212756,3.7272,134.14,134.13,1.377]
[1726021214552,16.11,134.18,134.08,16.11]
[1726021214743,16.11,134.18,134.08,19.9268195]
[1726021216251,16.11,134.18,134.07,1.398]
[1726021216452,16.11,134.14,134.05,5.04089166]
[1726021216653,16.11,134.14,134.06,2.791]
[1726021216958,16.11,134.14,134.05,1.3335]
[1726021217160,19.75772133,134.14,134.05,1.3335]
[1726021217352,3.7292,134.07,134.05,1.3335]
[1726021218455,3.7294,134.06,134.05,1.3335]
[1726021219257,3.7287,134.09,134.05,1.3335]
[1726021219451,2.7239,134.13,134.05,1.3335]
[1726021219650,2.7239,134.13,134.06,16.11]
[1726021219850,3.7288,134.09,134.06,16.11]
[1726021220046,2.7239,134.13,134.06,16.11]
[1726021220459,3.7287,134.09,134.06,16.11]
[1726021221453,3.7284,134.1,134.06,16.11]
[1726021222751,3.7286,134.09,134.06,16.11]
[1726021223757,3.7284,134.1,134.06,16.11]
[1726021224757,3.7287,134.09,134.06,16.11]
[1726021225666,1.3149,134.13,134.06,16.11]
[1726021226061,1.3149,134.13,134.05,1.3335]
[1726021226258,3.7294,134.06,134.05,1.3335]
[1726021230869,17.467,134.12,134.05,1.3335]
[1726021230870,1.357,134.12,134.05,1.3335]
[1726021231261,3.7284,134.1,134.05,1.3335]
[1726021231563,1.3149,134.13,134.05,1.3335]
[1726021231962,3.7285,134.1,134.05,1.3335]
[1726021232463,3.7286,134.1,134.05,1.3335]
[1726021234367,3.7282,134.11,134.06,16.11]
[1726021235972,3.7284,134.1,134.06,16.11]
[1726021236371,1.3149,134.13,134.05,2.693]
[1726021237274,3.7286,134.1,134.05,2.693]
[1726021237670,16.11,134.16,134.06,16.11]
[1726021237868,1.3421,134.17,134.08,16.11]
[1726021238066,1.3421,134.17,134.09,3.64714658]
[1726021238269,1.3421,134.17,134.1,16.11]
[1726021238464,1.3726,134.18,134.11,1.4005]
[1726021238670,1.4167,134.2,134.12,16.11]
[1726021239573,3.7266,134.17,134.12,16.11]
[1726021239771,117.88104584,134.21,134.12,16.11]
[1726021240572,16.11,134.21,134.11,4.073]
[1726021242570,3.7271,134.15,134.11,4.073]
[1726021246472,3.7265,134.17,134.11,4.073]
[1726021246672,16.11,134.19,134.11,4.073]
[1726021247272,16.11,134.19,134.11,2.7388]
[1726021248078,3.7274,134.14,134.11,2.7388]
[1726021248281,16.11,134.19,134.11,2.7388]
[1726021248676,3.7274,134.14,134.11,2.7388]
[1726021249276,16.11,134.17,134.11,1.4005]
[1726021249978,3.7278,134.12,134.11,1.4005]
[1726021251980,16.11,134.19,134.11,1.4005]
[1726021252377,16.11,134.16,134.07,1.3422]
[1726021252678,3.7284,134.1,134.08,3.65687224]
[1726021253495,16.11,134.14,134.07,1.3225]
[1726021253496,3.7287,134.09,134.07,1.3225]
[1726021253688,16.11,134.14,134.07,1.3225]
[1726021254082,3.7287,134.09,134.07,1.3225]
[1726021254277,16.11,134.14,134.07,1.3225]
[1726021254483,16.11,134.12,134.07,1.3225]
[1726021254783,3.7289,134.08,134.07,1.3225]
[1726021255373,3.7292,134.07,134.03,1.4103]
[1726021255589,16.11,134.12,134.03,1.3214]
[1726021256684,3.7294,134.07,134.03,1.3214]
[1726021257777,3.729,134.08,134.03,1.3214]
[1726021257988,16.11,134.14,134.04,16.11]
[1726021260691,16.11,134.14,134.03,1.3214]
[1726021260991,16.11,134.11,134.03,1.3214]
[1726021261183,2.698,134.1,134.03,1.3214]
[1726021266593,2.698,134.1,134.03,5.0516]
[1726021266790,2.698,134.1,134.03,1.3214]
[1726021267095,2.698,134.1,134.0,3.731]
[1726021267096,16.11,134.08,134.0,3.731]
[1726021267691,19.93134754,134.08,133.98,16.11]
[1726021267890,16.11,134.08,133.98,16.11]
[1726021268993,16.11,134.08,134.01,3.7308]
[1726021269985,16.11,134.08,134.0,3.731]
[1726021270998,16.11,134.08,133.98,16.11]
[1726021271301,16.11,134.06,133.96,1.3135]
[1726021271495,16.11,134.06,133.95,16.11]
[1726021271691,16.11,134.06,133.96,1.3813]
[1726021272392,16.11,134.06,133.97,3.7317]
[1726021273487,2.7398,134.05,133.96,5.1135]